bitfinex-derivatives/quotes_SOLF0:USTF0_20230105
["timestamp","ask_amount","ask_price","bid_price","bid_amount"]
[1672877022532,0.06930638,13.364,13.358,10.0]
[1672877022740,0.06930638,13.364,13.359,112.315]
[1672877023054,0.06930638,13.364,13.361,52.25]
[1672877023267,0.06248184,13.367,13.363,10.0]
[1672877023583,10.0,13.369,13.363,10.0]
[1672877023790,10.0,13.369,13.361,52.25]
[1672877024002,10.0,13.369,13.363,37.428]
[1672877025368,0.061539,13.37,13.364,10.0]
[1672877025682,1834.061539,13.37,13.365,112.266]
[1672877026099,10.0,13.369,13.365,112.266]
[1672877026305,10.0,13.369,13.363,37.42874411]
[1672877033362,1834.061539,13.37,13.363,164.19774411]
[1672877034096,10.0,13.369,13.363,164.19774411]
[1672877034520,10.0,13.369,13.363,51.91074411]
[1672877034731,10.0,13.369,13.363,164.19774411]
[1672877036203,10.0,13.369,13.363,89.33874411]
[1672877039778,1834.061539,13.37,13.363,89.33874411]
[1672877040194,10.0,13.369,13.363,89.33874411]
[1672877040411,10.0,13.369,13.363,164.19774411]
[1672877041349,1834.061539,13.37,13.363,164.19774411]
[1672877041772,10.0,13.369,13.363,51.91074411]
[1672877042615,10.0,13.369,13.363,89.33974411]
[1672877042930,10.0,13.369,13.363,89.19127798]
[1672877044504,10.0,13.369,13.363,164.05027798]
[1672877046080,10.0,13.369,13.363,51.76227798]
[1672877046289,0.061539,13.37,13.365,52.25]
[1672877046505,0.061539,13.37,13.366,10.0]
[1672877046714,0.06795247,13.373,13.366,10.0]
[1672877047027,0.06205662,13.374,13.366,10.0]
[1672877047238,0.06205662,13.374,13.366,47.42]
[1672877047448,0.06205662,13.374,13.367,10.0]
[1672877047663,0.06205662,13.374,13.366,37.42]
[1672877048399,0.06205662,13.374,13.367,47.418]
[1672877049236,50.0,13.372,13.365,0.06922884]
[1672877049443,10.0,13.371,13.365,0.06922884]
[1672877053541,10.0,13.371,13.365,37.49322884]
[1672877056593,10.0,13.371,13.365,0.06922884]
[1672877059640,44.95,13.369,13.356,44.93]
[1672877059856,133.5543867,13.362,13.353,44.95]
[1672877060069,133.5543867,13.362,13.353,37.457]
[1672877060070,10.0,13.361,13.353,37.457]
[1672877060379,83.5543867,13.362,13.356,44.95]
[1672877060589,83.5543867,13.362,13.356,54.95]
[1672877061431,83.5543867,13.362,13.359,44.73]
[1672877062275,83.5543867,13.362,13.36,37.438]
[1672877062908,83.5543867,13.362,13.359,82.17]
[1672877063958,83.5543867,13.362,13.361,44.95]
[1672877064905,83.5543867,13.362,13.361,82.385]
[1672877071313,0.0056867,13.362,13.361,82.385]
[1672877071524,10.0,13.371,13.362,10.0]
[1672877071730,584.0,13.383,13.37,44.95]
[1672877072048,10.0,13.378,13.372,44.73]
[1672877072259,51.8402,13.378,13.372,44.73]
[1672877072990,51.8402,13.378,13.372,82.132]
[1672877073512,51.8402,13.378,13.372,156.941]
[1672877073727,51.8402,13.378,13.37,0.06144361]
[1672877073935,10.0,13.376,13.37,0.06144361]
[1672877074884,10.0,13.376,13.37,37.46944361]
[1672877075095,10.0,13.376,13.37,0.06144361]
[1672877078145,50.0,13.372,13.364,74.853]
[1672877078461,10.0,13.371,13.363,44.95]
[1672877079922,10.0,13.371,13.364,37.426]
[1672877080245,10.0,13.371,13.365,44.73]
[1672877080874,50.06189972,13.372,13.367,44.93]
[1672877081084,50.06189972,13.372,13.368,10.0]
[1672877081292,0.06760655,13.375,13.37,44.95]
[1672877081509,0.06760655,13.375,13.372,44.73]
[1672877081716,55.31860646,13.378,13.373,10.0]
[1672877081927,10.0,13.377,13.373,10.0]
[1672877082137,10.0,13.377,13.372,44.73]
[1672877082875,10.0,13.377,13.373,37.401]
[1672877083185,55.31860646,13.378,13.373,37.401]
[1672877083818,0.06990646,13.378,13.373,112.204]
[1672877084032,0.06990646,13.378,13.375,44.95]
[1672877084243,10.0,13.377,13.376,10.0]
[1672877084556,10.0,13.377,13.375,44.55]
[1672877084978,10.0,13.377,13.376,37.393]
[1672877085297,10.0,13.377,13.375,44.55]
[1672877085923,10.0,13.377,13.375,81.945]
[1672877087284,10.0,13.379,13.375,81.945]
[1672877088443,0.06773778,13.381,13.375,156.737]
[1672877090549,0.06773778,13.381,13.378,44.95]
[1672877090862,45.1756,13.383,13.379,122.155]
[1672877091278,45.1756,13.383,13.379,112.155]
[1672877092227,45.1756,13.383,13.379,37.385]
[1672877093170,1844.0,13.382,13.375,0.06193006]
[1672877093382,10.0,13.381,13.375,0.00193006]
[1672877093593,1844.0,13.381,13.375,0.00193006]
[1672877094537,1844.0,13.381,13.375,37.39693006]
[1672877096951,1834.0,13.381,13.375,37.39693006]
[1672877097162,1834.0,13.381,13.375,82.34693006]
[1672877097691,1834.0,13.382,13.377,44.95]
[1672877097905,10.0,13.381,13.378,37.386]
[1672877098116,1834.0,13.38,13.378,37.386]
[1672877098318,10.0,13.379,13.378,37.386]
[1672877098636,10.0,13.379,13.377,44.95]
[1672877098844,10.0,13.379,13.377,37.389]
[1672877099057,1834.0,13.38,13.377,37.389]
[1672877099263,1834.0,13.382,13.377,37.389]
[1672877099478,10.0,13.381,13.377,37.389]
[1672877099683,0.06712943,13.384,13.379,44.73]
[1672877100003,0.06712943,13.384,13.382,10.0]
[1672877100211,584.0,13.387,13.382,10.0]
[1672877100421,0.06275902,13.388,13.381,44.93]
[1672877100832,10.0,13.387,13.381,119.686]
[1672877101045,10.0,13.387,13.382,37.375]
[1672877101254,50.0,13.383,13.375,44.95]
[1672877101574,10.0,13.382,13.376,74.786]
[1672877101779,52.8189,13.387,13.38,37.38]
[1672877101989,52.8189,13.387,13.38,82.11]
[1672877103887,0.06842621,13.388,13.381,10.0]
[1672877104094,0.06842621,13.388,13.385,37.367]
[1672877104306,54.97261315,13.391,13.385,47.367]
[1672877104510,54.97261315,13.391,13.385,37.367]
[1672877104721,1.08601581,13.384,13.382,74.748]
[1672877104939,1.08601581,13.384,13.383,44.73]
[1672877105150,1.08601581,13.384,13.383,54.73]
[1672877105361,1.08601581,13.384,13.383,44.73]
[1672877105983,1.08601581,13.384,13.383,92.103]
[1672877106937,1.08601581,13.384,13.383,82.103]
[1672877107675,1.08601581,13.384,13.383,37.373]
[1672877109034,1.08601581,13.384,13.382,44.73]
[1672877109250,1.08601581,13.384,13.383,37.373]
[1672877112503,37.37,13.383,13.379,44.93]
[1672877112715,1834.0,13.379,13.373,119.728]
[1672877112920,10.0,13.378,13.373,44.93]
[1672877113453,1844.0,13.378,13.373,44.93]
[1672877113769,1881.388,13.378,13.37,82.359]
[1672877114083,43.8643,13.377,13.37,82.359]
[1672877114294,10.0,13.376,13.37,82.359]
[1672877114715,10.0,13.376,13.37,37.409]
[1672877114918,50.0,13.374,13.366,44.73]
[1672877115134,10.0,13.373,13.363,44.95]
[1672877115345,584.0,13.368,13.363,44.95]
[1672877115555,10.0,13.367,13.364,37.425]
[1672877115970,10.0,13.367,13.363,44.95]
[1672877116500,47.419,13.367,13.363,44.95]
[1672877116920,37.419,13.367,13.363,44.95]
[1672877117341,47.416,13.368,13.363,44.95]
[1672877117548,1881.416,13.368,13.363,44.95]
[1672877118185,1834.0,13.368,13.363,44.95]
[1672877118394,1834.0,13.368,13.365,44.93]
[1672877120178,1871.416,13.368,13.365,44.93]
[1672877120391,10.0,13.367,13.365,44.93]
[1672877120706,10.0,13.367,13.362,44.55]
[1672877120917,41.1453,13.366,13.362,44.55]
[1672877121132,10.0,13.365,13.36,44.93]
[1672877121341,51.1453,13.365,13.36,44.93]
[1672877121654,10.0,13.363,13.36,44.93]
[1672877122911,37.43,13.363,13.36,44.93]
[1672877123127,10.0,13.362,13.36,44.93]
[1672877123440,47.433,13.362,13.36,44.93]
[1672877125120,1844.0,13.361,13.353,37.457]
[1672877125331,37.442,13.359,13.352,44.95]
[1672877125647,10.0,13.358,13.352,44.95]
[1672877126171,37.448,13.357,13.352,44.95]
[1672877126380,10.0,13.356,13.352,44.95]
[1672877126816,47.451,13.356,13.352,44.95]
[1672877127011,10.0,13.358,13.352,44.95]
[1672877127222,10.06567241,13.359,13.354,44.95]
[1672877128906,10.06567241,13.359,13.352,44.55]
[1672877129219,0.06567241,13.359,13.354,44.95]
[1672877129430,0.06567241,13.359,13.355,10.0]
[1672877129642,0.0678246,13.362,13.355,10.0]
[1672877129854,0.0678246,13.362,13.354,44.95]
[1672877130379,10.0,13.36,13.354,44.95]
[1672877130904,10.0,13.36,13.355,44.95]
[1672877136264,10.0,13.36,13.355,82.401]
[1672877136473,10.0,13.36,13.355,44.95]
[1672877138891,0.0678246,13.362,13.355,44.95]
[1672877139311,10.0,13.36,13.355,44.95]
[1672877142148,1834.0,13.361,13.355,82.402]
[1672877142879,10.0,13.36,13.355,82.402]
[1672877144037,10.0,13.36,13.355,82.401]
[1672877144248,10.0,13.36,13.355,44.95]
[1672877146142,1834.0,13.361,13.355,44.95]
[1672877147104,10.0,13.36,13.355,44.95]
[1672877148778,1834.0,13.361,13.355,44.95]
[1672877149512,10.0,13.36,13.355,44.95]
[1672877151934,1834.0,13.361,13.355,44.95]
[1672877153081,1834.0,13.361,13.355,15.0]
[1672877153609,10.0,13.36,13.355,15.0]
[1672877155496,10.0,13.36,13.354,14.96]
[1672877155808,0.06586213,13.357,13.348,52.431]
[1672877156125,0.06586213,13.357,13.349,10.0]
[1672877156336,0.06586213,13.357,13.35,15.0]
[1672877160748,10.0,13.354,13.346,15.0]
[1672877161170,1834.0,13.353,13.346,15.0]
[1672877161376,1834.07141459,13.354,13.346,15.0]
[1672877161587,10.0,13.353,13.346,15.0]
[1672877162114,1834.0,13.352,13.346,15.0]
[1672877162324,10.0,13.351,13.346,15.0]
[1672877162538,1834.0,13.35,13.346,15.0]
[1672877162743,10.0,13.349,13.346,15.0]
[1672877162954,1834.0,13.348,13.346,15.0]
[1672877163267,10.0,13.347,13.344,15.0]
[1672877164949,0.06343227,13.35,13.344,15.0]
[1672877165158,1834.0,13.349,13.344,15.0]
[1672877165371,10.0,13.348,13.344,15.0]
[1672877165580,1844.0,13.348,13.344,15.0]
[1672877168210,1834.0,13.348,13.344,15.0]
[1672877168524,1834.0,13.348,13.345,15.0]
[1672877168736,1834.0,13.349,13.345,15.0]
[1672877168945,10.0,13.348,13.345,15.0]
[1672877170416,10.0,13.348,13.342,15.0]
[1672877171679,1844.0,13.348,13.342,15.0]
[1672877171991,1819.06,13.338,13.331,15.0]
[1672877172196,10.0,13.337,13.331,52.517]
[1672877172732,1844.0,13.337,13.331,52.517]
[1672877174430,10.0,13.335,13.323,14.96]
[1672877174640,0.06720901,13.334,13.323,14.96]
[1672877174957,10.0,13.332,13.323,14.96]
[1672877175174,1834.0,13.331,13.323,14.96]
[1672877175359,10.0,13.33,13.323,14.96]
[1672877175572,1834.0,13.329,13.323,14.96]
[1672877175784,10.0,13.328,13.323,14.96]
[1672877176002,1834.0,13.327,13.323,14.96]
[1672877176204,10.0,13.326,13.323,14.96]
[1672877176418,1844.0,13.326,13.323,14.96]
[1672877177674,1844.0,13.326,13.32,14.97]
[1672877178102,1834.0,13.317,13.314,15.0]
[1672877178307,10.0,13.316,13.314,15.0]
[1672877178748,1834.0,13.316,13.314,15.0]
[1672877179044,10.0,13.315,13.314,15.0]
[1672877179466,1834.0,13.316,13.314,15.0]
[1672877179676,10.0,13.318,13.314,15.0]
[1672877179878,1834.0,13.318,13.314,52.566]
[1672877180101,10.0,13.317,13.314,52.566]
[1672877180723,10.0,13.317,13.314,15.0]
[1672877180934,0.06062959,13.32,13.316,15.0]
[1672877181152,584.0,13.324,13.319,15.0]
[1672877181356,584.0,13.324,13.322,14.94]
[1672877181673,584.0,13.332,13.322,14.94]
[1672877181878,10.0,13.331,13.322,14.94]
[1672877182089,10.0,13.329,13.322,15.00479377]
[1672877182298,1834.0,13.328,13.322,15.00479377]
[1672877182517,10.0,13.327,13.322,15.00479377]
[1672877182931,10.0,13.329,13.322,15.00479377]
[1672877183148,1834.0,13.328,13.322,44.91479377]
[1672877183364,1834.0,13.328,13.324,44.85]
[1672877183560,1834.0,13.33,13.327,44.6]
[1672877183894,1834.0,13.33,13.328,10.0]
[1672877184299,1834.0,13.33,13.327,44.6]
[1672877187757,0.06356966,13.331,13.329,44.85]
[1672877187967,44.05869914,13.335,13.33,54.59]
[1672877188179,43.9892,13.335,13.331,10.0]
[1672877188907,10.0,13.333,13.33,44.59]
[1672877189123,1834.0,13.334,13.332,44.6]
[1672877189337,1834.0,13.336,13.332,44.6]
[1672877189541,1834.0,13.336,13.334,44.85]
[1672877191432,1834.0,13.336,13.332,37.514]
[1672877191650,1834.0,13.336,13.333,44.85]
[1672877192180,1834.0,13.336,13.333,82.363]
[1672877193326,1834.0,13.339,13.333,82.363]
[1672877195637,10.0,13.338,13.333,44.85]
[1672877195853,1834.0,13.333,13.331,0.06152128]
[1672877196062,10.0,13.332,13.328,44.85]
[1672877196272,1834.0,13.331,13.328,44.85]
[1672877197112,1834.0,13.331,13.328,82.376]
[1672877199742,0.06305482,13.334,13.328,82.376]
[1672877199954,0.06305482,13.334,13.329,10.0]
[1672877200683,0.06305482,13.334,13.328,82.376]
[1672877200890,0.06305482,13.334,13.329,10.0]
[1672877201097,0.06305482,13.334,13.327,0.0642949]
[1672877201630,10.0,13.333,13.327,0.0642949]
[1672877201842,54.504,13.333,13.327,0.0642949]
[1672877203938,1834.0,13.332,13.327,0.0642949]
[1672877204149,10.0,13.331,13.32,44.85]
[1672877204364,10.0,13.331,13.317,75.113]
[1672877204365,54.53,13.331,13.318,54.85]
[1672877204571,1834.0,13.33,13.318,54.85]
[1672877204889,111.12,13.329,13.316,44.85]
[1672877205102,0.06077747,13.327,13.316,82.411]
[1672877205418,10.0,13.325,13.317,10.0]
[1672877205618,1834.0,13.324,13.317,10.0]
[1672877205833,10.0,13.323,13.316,82.411]
[1672877206044,10.0,13.321,13.316,82.411]
[1672877206462,10.0,13.321,13.316,44.85]
[1672877208150,1834.0,13.322,13.316,44.85]
[1672877208368,1834.0,13.323,13.316,44.85]
[1672877208675,10.0,13.322,13.316,44.85]
[1672877208994,1844.0,13.322,13.316,44.85]
[1672877210986,1834.0,13.322,13.316,44.85]
[1672877211724,0.06835376,13.324,13.316,44.85]
[1672877211932,0.06835376,13.324,13.317,10.0]
[1672877214133,0.06835376,13.324,13.316,54.85]
[1672877214343,0.06835376,13.324,13.317,10.0]
[1672877215717,0.06835376,13.324,13.316,54.85]
[1672877215926,0.06835376,13.324,13.317,10.0]
[1672877218243,0.06835376,13.324,13.316,54.85]
[1672877218449,0.06835376,13.324,13.317,10.0]
[1672877218972,0.06835376,13.324,13.316,54.85]
[1672877219183,0.06835376,13.324,13.317,10.0]
[1672877220966,0.06835376,13.324,13.317,47.559]
[1672877221181,0.06835376,13.324,13.32,44.85]
[1672877221600,0.06835376,13.324,13.321,10.0]
[1672877221810,44.5631,13.326,13.321,10.0]
[1672877222022,44.5631,13.326,13.32,54.85]
[1672877222232,44.5631,13.326,13.32,44.85]
[1672877222967,44.5631,13.326,13.32,14.96]
[1672877224439,44.5631,13.326,13.32,52.51]
[1672877225174,44.5631,13.326,13.32,14.96]
[1672877225385,44.5631,13.326,13.318,75.112]
[1672877225386,1781.488,13.319,13.318,75.112]
[1672877225702,0.06302378,13.323,13.318,90.072]
[1672877225906,10.0,13.324,13.32,14.96]
[1672877226117,10.0,13.323,13.32,14.96]
[1672877226436,10.0,13.323,13.318,14.96]
[1672877226649,1834.0,13.322,13.318,14.96]
[1672877226848,10.0,13.321,13.318,14.96]
[1672877227169,10.0,13.319,13.318,14.96]
[1672877227381,1834.0,13.319,13.318,14.96]
[1672877227590,10.0,13.322,13.318,14.96]
[1672877227800,10.0,13.32,13.318,14.96]
[1672877228010,1834.0,13.319,13.318,14.96]
[1672877228220,10.0,13.322,13.318,14.96]
[1672877228438,10.0,13.32,13.318,14.96]
[1672877228634,42.4537,13.324,13.318,14.96]
[1672877228635,1834.0,13.319,13.318,14.96]
[1672877228849,10.0,13.322,13.318,14.96]
[1672877229061,10.0,13.32,13.318,14.96]
[1672877229271,1834.0,13.319,13.318,14.96]
[1672877229481,10.0,13.322,13.318,14.96]
[1672877229694,10.0,13.32,13.318,14.96]
[1672877229903,42.4537,13.324,13.318,14.96]
[1672877229904,1834.0,13.319,13.318,14.96]
[1672877230111,10.0,13.322,13.318,14.96]
[1672877230318,10.0,13.32,13.318,14.96]
[1672877230530,1834.0,13.319,13.318,14.96]
[1672877230742,10.0,13.322,13.318,14.96]
[1672877230957,1834.0,13.321,13.318,14.96]
[1672877231168,10.0,13.32,13.318,14.96]
[1672877231378,1834.0,13.319,13.318,14.84347624]
[1672877231586,10.0,13.322,13.318,14.84347624]
[1672877231797,10.0,13.32,13.318,14.84347624]
[1672877232006,1834.0,13.319,13.318,14.84347624]
[1672877232217,10.0,13.322,13.318,14.84347624]
[1672877232423,10.0,13.32,13.318,14.84347624]
[1672877232628,1834.0,13.319,13.318,14.84347624]
[1672877232840,10.0,13.322,13.318,14.84347624]
[1672877233058,10.0,13.32,13.318,14.84347624]
[1672877233267,1834.0,13.319,13.318,14.84347624]
[1672877233472,10.0,13.322,13.318,14.84347624]
[1672877233684,10.0,13.32,13.318,14.84347624]
[1672877233889,1834.0,13.319,13.318,14.84347624]
[1672877234103,10.0,13.322,13.318,14.84347624]
[1672877234316,1834.0,13.321,13.318,14.84347624]
[1672877234528,10.0,13.32,13.318,14.84347624]
[1672877234738,1834.0,13.319,13.318,14.84347624]
[1672877234945,10.0,13.322,13.318,14.84347624]
[1672877235157,1834.0,13.321,13.318,14.84347624]
[1672877235369,10.0,13.32,13.318,14.84347624]
[1672877235579,1834.0,13.319,13.318,52.39647624]
[1672877235792,1834.0,13.319,13.318,14.84347624]
[1672877236947,1834.0,13.323,13.318,14.84347624]
[1672877237157,10.0,13.322,13.318,14.84347624]
[1672877237682,1834.0,13.321,13.318,14.84347624]
[1672877237893,10.0,13.32,13.318,14.84347624]
[1672877238100,1834.0,13.319,13.318,52.39947624]
[1672877241048,1834.0,13.319,13.318,14.84347624]
[1672877241257,1834.0,13.323,13.318,14.84347624]
[1672877241467,10.0,13.322,13.318,14.84347624]
[1672877242937,10.0,13.322,13.318,52.39947624]
[1672877243145,1834.0,13.321,13.318,52.39947624]
[1672877243356,10.0,13.32,13.318,52.39947624]
[1672877243564,1834.0,13.319,13.318,14.84347624]
[1672877245775,1834.0,13.319,13.318,52.39947624]
[1672877245988,569.06637419,13.328,13.319,609.65]
[1672877246187,314.35,13.331,13.319,609.65]
[1672877246403,43.1995,13.333,13.327,14.96]
[1672877246613,43.1995,13.332,13.327,14.96]
[1672877247874,43.1995,13.332,13.328,7.47]
[1672877251754,43.1995,13.332,13.326,7.47]
[1672877251971,43.1995,13.332,13.325,0.06490464]
[1672877252180,50.0,13.329,13.325,0.06490464]
[1672877252393,10.0,13.328,13.325,0.06490464]
[1672877252606,10.0,13.328,13.322,7.53051457]
[1672877252813,50.0,13.329,13.322,7.53051457]
[1672877253233,10.0,13.33,13.322,7.53051457]
[1672877253446,55.38803569,13.331,13.322,7.53051457]
[1672877253973,50.0,13.329,13.322,7.53051457]
[1672877254184,10.0,13.328,13.322,7.53051457]
[1672877254496,50.0,13.329,13.322,7.53051457]
[1672877256599,50.0,13.329,13.324,7.42]
[1672877256805,45.38803569,13.331,13.324,7.42]
[1672877257437,50.0,13.329,13.324,7.42]
[1672877259009,50.0,13.329,13.322,0.06051457]
[1672877259220,10.0,13.328,13.322,0.06051457]
[1672877259850,50.0,13.329,13.322,0.06051457]
[1672877260589,50.0,13.329,13.322,10.06051457]
[1672877261424,7.53613569,13.331,13.323,7.47]
[1672877261640,0.06613569,13.331,13.326,7.42]
[1672877261851,50.0,13.339,13.33,7.47]
[1672877262055,50.0,13.339,13.333,7.47]
[1672877262585,50.0,13.339,13.334,10.0]
[1672877272582,0.06595434,13.341,13.334,10.0]
[1672877273516,56.2,13.345,13.334,10.0]
[1672877273731,43.4482,13.345,13.341,7.42]
[1672877273937,7.42,13.351,13.342,10.0]
[1672877274148,50.0,13.349,13.342,10.0]
[1672877279190,7.47,13.343,13.341,0.062147]
[1672877279394,63.62,13.342,13.337,0.06564536]
[1672877279612,50.0,13.34,13.335,0.06709529]
[1672877280137,57.42,13.34,13.335,0.06709529]
[1672877280349,50.0,13.34,13.335,9.529e-05]
[1672877280558,10.0,13.339,13.331,7.42]
[1672877280975,10.0,13.339,13.33,7.4]
[1672877281194,7.47,13.334,13.324,17.47]
[1672877281399,10.0,13.333,13.324,17.47]
[1672877281609,10.0,13.333,13.324,17.53641042]
[1672877281814,7.53675307,13.334,13.324,7.53641042]
[1672877282239,0.06675307,13.334,13.327,7.47]
[1672877282450,0.06675307,13.334,13.328,10.0]
[1672877284551,0.06675307,13.334,13.327,7.47]
[1672877284866,0.06675307,13.334,13.326,7.47]
[1672877286229,0.06675307,13.334,13.333,7.47]
[1672877286439,0.07109079,13.338,13.333,7.47]
[1672877286650,0.07109079,13.338,13.334,10.0]
[1672877286860,0.0653155,13.341,13.335,7.47]
[1672877287282,0.0653155,13.341,13.336,10.0]
[1672877287492,0.0653155,13.341,13.338,7.47]
[1672877287704,41.66598833,13.344,13.338,7.47]
[1672877289176,41.66598833,13.344,13.339,10.0]
[1672877289803,0.06288833,13.344,13.339,10.0]
[1672877290963,7.49288833,13.344,13.336,0.0705205]
[1672877291276,7.49288833,13.344,13.326,29.88]
[1672877291277,50.0,13.34,13.332,7.47]
[1672877291688,7.42,13.342,13.332,7.47]
[1672877291899,43.9781,13.344,13.338,7.47]
[1672877292112,7.43,13.348,13.338,7.47]
[1672877292324,0.07088055,13.346,13.338,7.47]
[1672877292534,0.07088055,13.346,13.339,10.0]
[1672877292747,0.07088055,13.346,13.339,17.47]
[1672877293382,0.07088055,13.346,13.341,7.47]
[1672877293694,0.07088055,13.346,13.342,10.0]
[1672877293892,44.04461446,13.349,13.342,10.0]
[1672877295688,44.04461446,13.349,13.342,17.47]
[1672877298208,44.04461446,13.349,13.342,7.47]
[1672877301568,44.04461446,13.349,13.339,7.46141483]
[1672877301785,7.42,13.345,13.339,0.06141483]
[1672877302092,50.0,13.341,13.339,1.483e-05]
[1672877302308,10.0,13.34,13.334,7.4]
[1672877303357,50.0,13.341,13.332,7.42]
[1672877303563,50.0,13.341,13.333,10.0]
[1672877303985,50.0,13.341,13.332,7.42]
[1672877305985,50.0,13.341,13.332,44.936]
[1672877306198,50.0,13.341,13.334,7.47]
[1672877306398,50.0,13.341,13.335,10.0]
[1672877306608,0.06518085,13.342,13.335,10.0]
[1672877306823,0.06518085,13.342,13.338,7.4]
[1672877307033,0.07008949,13.345,13.34,7.47]
[1672877307245,0.07147046,13.347,13.34,7.47]
[1672877308508,0.07147046,13.347,13.338,44.75]
[1672877308714,0.07147046,13.347,13.339,10.0]
[1672877309249,0.07147046,13.347,13.338,10.0]
[1672877309874,0.07147046,13.347,13.339,37.496]
[1672877310085,0.07147046,13.347,13.34,10.0]
[1672877310930,0.07147046,13.347,13.338,10.0]
[1672877311766,0.07147046,13.347,13.337,10.0]
[1672877311978,0.07147046,13.347,13.34,10.0]
[1672877312507,0.07147046,13.347,13.337,10.0]
[1672877313032,0.07147046,13.347,13.336,44.56]
[1672877313243,0.07147046,13.347,13.339,37.496]
[1672877313553,0.07147046,13.347,13.34,10.0]
[1672877313873,0.07147046,13.347,13.339,37.496]
[1672877314185,0.07147046,13.347,13.339,10.0]
[1672877314607,10.0,13.345,13.337,47.502]
[1672877314807,10.0,13.345,13.337,37.502]
[1672877315863,37.487,13.343,13.337,37.502]
[1672877316078,10.0,13.342,13.337,37.502]
[1672877316498,10.0,13.343,13.337,37.502]
[1672877316814,37.492,13.341,13.336,82.065]
[1672877324595,10.0,13.34,13.334,44.75]
[1672877324807,10.0,13.34,13.329,44.75]
[1672877325017,112.55743748,13.339,13.329,44.75]
[1672877325335,10.0,13.338,13.329,82.274]
[1672877325545,112.521,13.336,13.329,44.75]
[1672877325863,10.0,13.335,13.329,44.75]
[1672877326071,10.0,13.335,13.329,82.275]
[1672877326697,10.0,13.335,13.329,44.75]
[1672877327962,10.0,13.335,13.329,82.275]
[1672877328171,10.0,13.338,13.329,82.275]
[1672877330276,44.75,13.337,13.324,82.287]
[1672877330487,10.0,13.336,13.324,82.287]
[1672877330697,0.06871927,13.335,13.324,44.75]
[1672877331013,0.06871927,13.335,13.325,10.0]
[1672877331220,0.06871927,13.335,13.324,44.75]
[1672877331430,0.06871927,13.335,13.325,10.0]
[1672877331959,0.06871927,13.335,13.324,82.289]
[1672877332170,0.06871927,13.335,13.325,10.0]
[1672877332382,10.06871927,13.335,13.325,10.0]
[1672877332591,10.06871927,13.335,13.324,82.289]
[1672877332901,53.01801927,13.335,13.324,82.289]
[1672877333113,53.01801927,13.335,13.326,44.75]
[1672877336362,50.0,13.332,13.324,44.75]
[1672877336573,1834.0,13.331,13.323,44.75]
[1672877336784,1878.4402,13.331,13.323,44.75]
[1672877337001,10.0,13.33,13.323,44.75]
[1672877337414,10.0,13.33,13.323,82.29]
[1672877337628,1878.4402,13.331,13.323,82.29]